fUSD/lending_fUSD_20251028
["ID","MTS","AMOUNT","RATE_DAILY","PERIOD"]
[392564013,1761671247561,-212.64433447,0.00029132,2]
[392564014,1761671247584,-500.0,0.00029132,2]
[392564015,1761671247606,-500.0,0.00029132,2]
[392564016,1761671247641,-500.0,0.00029132,2]
[392564017,1761671247669,-500.0,0.00029132,2]
[392564018,1761671247714,-500.0,0.00029132,2]
[392564019,1761671247751,-595.37131296,0.0002968,2]
[392564020,1761671247786,-9251.08904682,0.0002989,3]
[392564021,1761671247815,-9959.45953434,0.0002989,3]
[392564023,1761671253112,-250.0,0.00029132,2]
[392564024,1761671253133,-250.0,0.00029132,2]
[392564025,1761671253156,-151.0,0.00029132,2]
[392564026,1761671253177,-250.0,0.00029132,2]
[392564027,1761671253197,-151.0,0.00029132,2]
[392564028,1761671253218,-250.0,0.00029132,2]
[392564029,1761671253238,-151.0,0.00029132,2]
[392564030,1761671253564,-250.0,0.00029132,2]
[392564031,1761671253587,-151.0,0.00029132,2]
[392564032,1761671253607,-250.0,0.00029132,2]
[392564033,1761671253630,-5443.70842486,0.0002989,3]
[392564064,1761671432223,-185.93,0.00026184,2]
[392564065,1761671432233,-161.88,0.00028907,2]
[392564066,1761671432244,-1307.94301268,0.00029,2]
[392564067,1761671432256,-151.0,0.00029132,2]
[392564068,1761671432266,-250.0,0.00029132,2]
[392564069,1761671432275,-151.0,0.00029132,2]
[392564070,1761671432285,-169.80314712,0.00029132,2]
[392564071,1761671432297,-80.19685288,0.00029132,2]
[392564072,1761671432307,-151.0,0.00029132,2]
[392564073,1761671432316,-250.0,0.00029132,2]
[392564075,1761671432326,-151.0,0.00029132,2]
[392564076,1761671432339,-250.0,0.00029132,2]
[392564077,1761671432349,-151.0,0.00029132,2]
[392564078,1761671432358,-250.0,0.00029132,2]
[392564079,1761671432367,-151.0,0.00029132,2]
[392564080,1761671432377,-151.0,0.00029132,2]
[392564081,1761671432387,-322.6107,0.00029132,2]
[392564083,1761671432396,-159.85615,0.000296,2]
[392564085,1761671432406,-159.85615,0.000296,2]
[392564087,1761671432416,-166.68,0.00029778,2]
[392564088,1761671432425,-885.34960143,0.000298,2]
[392564089,1761671432434,-5000.0,0.000298,2]
[392564090,1761671432444,-5575.40962284,0.000298,2]
[392564092,1761671432453,-150.0,0.00029882,2]
[392564093,1761671432462,-31020.8022128,0.00029887,3]
[392564094,1761671432472,-4431.54317326,0.00029889,3]
[392564095,1761671432481,-164.49059369,0.00029889,2]
[392564096,1761671432491,-4431.54317326,0.00029889,3]
[392564098,1761671432501,-67644.24499436,0.0002989,3]
[392564100,1761671432514,-31532.24418289,0.0002989,3]
[392564102,1761671432528,-36479.85466034,0.0002989,3]
[392564103,1761671432807,-28310.75357341,0.0002989,3]
[392564104,1761671432817,-150.0,0.0002989,7]
[392564105,1761671432827,-1184.56,0.0002989,2]
[392564106,1761671432838,-152.439241,0.00029895,3]
[392564107,1761671432848,-400.0,0.00029896,3]
[392564108,1761671432858,-500.0,0.00029896,3]
[392564109,1761671432868,-506.70220008,0.00029896,3]
[392564110,1761671432880,-500.0,0.00029896,3]
[392564111,1761671432890,-500.0,0.00029896,3]
[392564112,1761671432899,-31764.6335268,0.00029897,2]
[392564114,1761671438088,-423.82310137,0.00028903,2]
[392564120,1761671439296,-10977.86689863,0.00028903,2]
[392564121,1761671439306,-5575.40962276,0.00029857,2]
[392564122,1761671439317,-81251.2304748,0.00029897,2]
[392564123,1761671439326,-1421.9572392,0.00029897,2]
[392564124,1761671439336,-1779.6954276,0.00029897,2]
[392564125,1761671439346,-1020.85581001,0.00029897,2]
[392564126,1761671439355,-1000.0,0.00029899,7]
[392564127,1761671439365,-500.0,0.00029899,3]
[392564128,1761671439375,-500.0,0.00029899,3]
[392564129,1761671439385,-500.0,0.00029899,3]
[392564130,1761671439395,-500.0,0.00029899,3]
[392564131,1761671439405,-500.0,0.00029899,3]
[392564132,1761671439414,-500.0,0.00029899,3]
[392564133,1761671439424,-500.0,0.00029899,3]
[392564134,1761671439433,-500.0,0.00029899,3]
[392564135,1761671439443,-500.0,0.00029899,3]
[392564136,1761671439452,-319.58169146,0.00029899,3]
[392564137,1761671439462,-151.5393621,0.00029899,20]
[392564138,1761671439471,-666.0,0.00029899,10]
[392564139,1761671439485,-300.0,0.00029899,10]
[392564140,1761671439495,-300.0,0.00029899,10]
[392564141,1761671439505,-300.0,0.00029899,10]
[392564142,1761671439516,-682.64160043,0.00029899,10]
[392564143,1761671439525,-300.0,0.00029899,10]
[392564144,1761671439535,-300.0,0.00029899,10]
[392564145,1761671439544,-666.0,0.00029899,10]
[392564146,1761671439554,-150.0,0.000299,5]
[392564147,1761671439564,-428781.13871382,0.000299,2]
[392564148,1761671439727,-53316.96756773,0.000299,2]
[392564151,1761671440544,-87251.74752973,0.000299,2]
[392564152,1761671440582,-4000.00612181,0.000299,2]
[392564153,1761671440593,-398.82975221,0.000299,2]
[392564154,1761671440612,-4083.58751927,0.000299,2]
[392564155,1761671440631,-2915.67544057,0.000299,2]
[392564198,1761671443126,-591716.25049483,0.000299,2]
[392564199,1761671443136,-114509.24040041,0.000299,2]
[392564200,1761671443145,-1112.73,0.000299,2]
[392564201,1761671443155,-387.13,0.000299,7]
[392564202,1761671443165,-1047223.29677235,0.000299,2]
[392564207,1761671444037,-108795.62450747,0.000299,2]
[392564211,1761671446060,-25203.33090418,0.000299,2]
[392564212,1761671446171,-14962.55070621,0.000299,2]
[392564213,1761671446194,-58349.8016838,0.000299,2]
[392564226,1761671544336,500.0,0.000135,2]
[392564259,1761672112440,2546.13383706,0.0002,3]
[392564291,1761672250669,294.05,0.00013699,2]
[392564292,1761672308372,7705.95,0.00015,2]
[392564293,1761672308402,10000.0,0.00015,2]
[392564294,1761672308433,10000.0,0.00015,2]
[392564295,1761672308461,10000.0,0.00015,2]
[392564296,1761672308490,10000.0,0.00015,2]
[392564297,1761672308533,10000.0,0.00015,2]
[392564298,1761672308562,10000.0,0.00015,2]
[392564299,1761672308594,10000.0,0.00015,2]
[392564300,1761672308624,7000.0,0.00015,2]
[392564301,1761672308655,1039360.08304988,0.00015,2]
[392564302,1761672308686,828589.4711133,0.00015,2]
[392564325,1761672435434,500.0,0.00013,2]
[392564326,1761672443625,500.0,0.00013,2]
[392564327,1761672446923,500.0,0.00013,2]
[392564352,1761672556130,-294.05,0.00020187,2]
[392564353,1761672556150,-3566.14287381,0.00021,2]
[392564354,1761672556171,-930.44451619,0.00022,4]
[392564427,1761672632642,-300.0,0.00021999,2]
[392564428,1761672632656,-83.47776338,0.00021999,2]
[392564429,1761672632675,-216.52223662,0.00021999,2]
[392564430,1761672632685,-4167.81641295,0.00022,4]
[392564440,1761672638323,-2619.1736062,0.00022,4]
[392564441,1761672638335,-563.94852852,0.00022,4]
[392564499,1761672640494,-1777.83478525,0.00022,4]
[392564508,1761672640847,-886.18045807,0.00022,4]
[392564523,1761672643657,-11169.12167607,0.00022,4]
[392564524,1761672643668,-489.17961144,0.000221,2]
[392564525,1761672643677,-237.69519008,0.0002211,2]
[392564526,1761672643687,-2900.0,0.000225,15]
[392564527,1761672643696,-21917.65335482,0.000225,2]
[392564528,1761672643705,-627.24867238,0.00023,7]
[392564529,1761672643714,-165.0,0.00023,5]
[392564530,1761672643724,-11545.20780149,0.00023333,7]
[392564531,1761672643733,-1009.19611799,0.00024,2]
[392564532,1761672643742,-373.04321473,0.00024199,2]
[392564533,1761672643752,-1582.308239,0.00025,7]
[392564534,1761672643762,-294.05,0.00026676,2]
[392564535,1761672643771,-150.0,0.00026901,2]
[392564536,1761672643781,-198.8,0.00028138,2]
[392564537,1761672643790,-300.0,0.00028867,2]
[392564538,1761672643800,-810.34,0.00028876,120]
[392564539,1761672643809,-700.95,0.00028884,2]
[392564540,1761672643819,-159.54,0.00028894,30]
[392564541,1761672643828,-4194.29,0.00028914,2]
[392564542,1761672643837,-19390.48,0.00028961,2]
[392564543,1761672643847,-206.3,0.00029027,2]
[392564544,1761672643856,-158.37,0.00029201,2]
[392564545,1761672643865,-168.0,0.00029204,2]
[392564546,1761672643874,-206.3,0.0002923,2]
[392564547,1761672643883,-206.3,0.00029433,2]
[392564548,1761672643892,-150.0,0.000295,2]
[392564549,1761672643901,-206.3,0.00029637,2]
[392564550,1761672643911,-1745.2652,0.00029664,2]
[392564551,1761672643920,-6172.98874708,0.00029696,2]
[392564552,1761672643929,-1350.0,0.000297,8]
[392564553,1761672643939,-1000.0,0.000297,7]
[392564554,1761672643948,-1000.0,0.000297,6]
[392564555,1761672643957,-1000.0,0.000297,6]
[392564556,1761672643969,-1115.0,0.000297,5]
[392564557,1761672643979,-1425.0,0.00029735,2]
[392564558,1761672643988,-277.35679052,0.00029746,2]
[392564559,1761672643998,-154.83164409,0.0002975,20]
[392564560,1761672644007,-15788.08932831,0.00029764,2]
[392564563,1761672646391,-519.45929177,0.00029764,2]
[392564564,1761672646403,-332.11150025,0.00029764,2]
[392564565,1761672646498,-1739.80858611,0.00029764,2]
[392564635,1761672945341,510.84,0.00018,2]
[392564688,1761673599115,-209.58145146,0.000247,5]
[392564694,1761673762930,198.99,0.00014076,2]
[392564695,1761673763144,198.99,0.00014817,2]
[392564696,1761673763386,198.99,0.00015558,2]
[392564697,1761673763683,198.99,0.00016298,2]
[392564698,1761673763865,198.99,0.00017039,2]
[392564699,1761673764092,198.99,0.0001778,2]
[392564700,1761673769590,-153.20748174,0.00018521,2]
[392564702,1761673831566,-45.78251826,0.00018521,2]
[392564703,1761673831576,-198.99,0.00019262,2]
[392564704,1761673831585,-198.99,0.00020003,2]
[392564705,1761673831594,-300.0,0.00020373,2]
[392564706,1761673831603,-283.30851216,0.00020373,2]
[392564707,1761673831612,-198.99,0.00020744,2]
[392564708,1761673831621,-198.99,0.00021484,2]
[392564709,1761673831630,-198.99,0.00022225,2]
[392564710,1761673831639,-198.99,0.00022966,2]
[392564711,1761673831648,-198.99,0.00023707,2]
[392564712,1761673831657,-1347.30966643,0.000241,5]
[392564713,1761673831675,-1474.14651042,0.000241,5]
[392564714,1761673831685,-584.99999962,0.000241,5]
[392564715,1761673831696,-452.69433313,0.000241,5]
[392564716,1761673831707,-251.6559542,0.000241,5]
[392564717,1761673831718,-1193.1935362,0.000241,5]
[392564718,1761673831731,-198.99,0.00024448,2]
[392564719,1761673831741,-198.99,0.00025189,2]
[392564720,1761673831750,-286.90992144,0.00025502,60]
[392564721,1761673831760,-162.67497404,0.00025602,2]
[392564722,1761673831769,-160.0,0.00025681,2]
[392564723,1761673831779,-1200.0,0.00025885,2]
[392564724,1761673831788,-300.0,0.00025885,2]
[392564725,1761673831797,-300.0,0.00025885,2]
[392564726,1761673831806,-500.0,0.00025886,2]
[392564727,1761673831815,-233.10172579,0.00025886,2]
[392564728,1761673831838,-354.07719308,0.00025886,2]
[392564729,1761673831847,-151.0,0.00025887,2]
[392564730,1761673831856,-61.178902,0.00025887,2]
[392564731,1761673831867,-138.821098,0.00025887,2]
[392564732,1761673831876,-150.32733226,0.00025887,2]
[392564733,1761673831888,-0.67266774,0.00025887,2]
[392564734,1761673831898,-151.0,0.00025887,2]
[392564735,1761673831908,-151.0,0.00025887,2]
[392564736,1761673831918,-151.0,0.00025887,2]
[392564737,1761673831927,-151.0,0.00025887,2]
[392564738,1761673831936,-151.0,0.00025887,2]
[392564739,1761673831945,-151.0,0.00025887,2]
[392564740,1761673831955,-151.0,0.00025887,2]
[392564741,1761673831964,-151.0,0.00025887,2]
[392564742,1761673831973,-151.0,0.00025887,2]
[392564743,1761673831982,-151.0,0.00025887,2]
[392564744,1761673831992,-2521.2485322,0.00025903,2]
[392564745,1761673832003,-920.3518309,0.00025903,2]
[392564746,1761673832013,-348.9252288,0.00025903,2]
[392564747,1761673832022,-1160.5026405,0.00025903,2]
[392564748,1761673832031,-1130.80229161,0.00025903,2]
[392564749,1761673832049,-1171.87051943,0.00025903,2]
[392564750,1761673832060,-842.46285188,0.00025903,2]
[392564751,1761673832071,-1648.85838632,0.00025903,2]
[392564752,1761673832082,-61688.75327896,0.00025903,2]
[392564753,1761673832091,-3850.3015862,0.00025903,2]
[392564754,1761673832101,-198.99,0.00025929,2]
[392564755,1761673832110,-198.99,0.0002667,2]
[392564756,1761673832119,-710.37,0.00026802,6]
[392564757,1761673832128,-150.0,0.00026901,2]
[392564758,1761673832138,-383.48,0.00027247,3]
[392564759,1761673832147,-344.0,0.0002727,2]
[392564760,1761673832156,-1260.0,0.00027322,2]
[392564761,1761673832166,-383.0,0.00027325,2]
[392564762,1761673832175,-469.0,0.00027339,2]
[392564763,1761673832184,-1815.0,0.00027376,2]
[392564764,1761673832195,-325.0,0.00027379,2]
[392564765,1761673832204,-682.0,0.00027389,2]
[392564766,1761673832217,-284.0,0.00027393,2]
[392564767,1761673832228,-198.99,0.00027411,2]
[392564768,1761673832238,-500.0,0.00027616,2]
[392564769,1761673832247,-1500.0,0.000279,2]
[392564770,1761673832257,-198.99,0.00028152,2]
[392564771,1761673832266,-1771.79,0.00028196,2]
[392564772,1761673832276,-300.0,0.00028272,2]
[392564773,1761673832285,-300.0,0.00028272,2]
[392564774,1761673832295,-300.0,0.00028272,2]
[392564775,1761673832304,-300.0,0.00028272,2]
[392564776,1761673832314,-300.0,0.00028272,2]
[392564777,1761673832323,-168.0,0.00028319,7]
[392564778,1761673832332,-150.0,0.00028396,7]
[392564779,1761673832342,-500.0,0.00028404,2]
[392564780,1761673832351,-500.0,0.00028404,2]
[392564781,1761673832360,-250.0,0.00028404,2]
[392564782,1761673832370,-250.0,0.00028404,2]
[392564783,1761673832379,-500.0,0.00028404,2]
[392564784,1761673832388,-331.09450358,0.00028404,2]
[392564785,1761673832398,-500.0,0.00028404,2]
[392564786,1761673832407,-322.6107,0.00028404,2]
[392564787,1761673832416,-500.0,0.00028404,2]
[392564788,1761673832425,-500.0,0.00028404,2]
[392564789,1761673832434,-500.0,0.00028404,2]
[392564790,1761673832443,-574.12855637,0.00028404,2]
[392564791,1761673832452,-500.0,0.00028404,2]
[392564792,1761673832461,-500.0,0.00028404,2]
[392564793,1761673832470,-500.0,0.00028404,2]
[392564794,1761673832479,-500.0,0.00028404,2]
[392564795,1761673832488,-500.0,0.00028404,2]
[392564796,1761673832498,-500.0,0.00028404,2]
[392564797,1761673832507,-500.0,0.00028404,2]
[392564798,1761673832517,-500.0,0.00028404,2]
[392564799,1761673832526,-500.0,0.00028404,2]
[392564800,1761673832535,-500.0,0.00028404,2]
[392564801,1761673832544,-500.0,0.00028404,2]
[392564802,1761673832554,-500.0,0.00028404,2]
[392564803,1761673832563,-500.0,0.00028404,2]
[392564804,1761673832572,-591.74589922,0.00028404,2]
[392564805,1761673832582,-500.0,0.00028404,2]
[392564806,1761673832591,-500.0,0.00028404,2]
[392564807,1761673832601,-500.0,0.00028404,2]
[392564808,1761673832611,-500.0,0.00028404,2]
[392564809,1761673832620,-500.0,0.00028404,2]
[392564810,1761673832629,-250.0,0.00028404,2]
[392564811,1761673832638,-250.0,0.00028404,2]
[392564812,1761673832647,-277.35679052,0.00028404,2]
[392564813,1761673832656,-250.0,0.00028404,2]
[392564814,1761673832665,-250.0,0.00028404,2]
[392564815,1761673832674,-168.0,0.00028527,2]
[392564816,1761673832683,-1000.0,0.00028535,2]
[392564817,1761673832692,-150.0,0.00028598,2]
[392564818,1761673832701,-200.0,0.00028617,2]
[392564819,1761673832710,-207.4,0.00028626,2]
[392564820,1761673832911,-7722.33,0.00028633,2]
[392564821,1761673832920,-8501.67,0.00028643,2]
[392564822,1761673832930,-168.0,0.00028932,2]
[392564823,1761673832940,-595.37131296,0.00028952,2]
[392564824,1761673832951,-168.0,0.00029157,2]
[392564825,1761673832961,-14834.3060584,0.00029214,2]
[392564826,1761673832970,-859.1184095,0.00029214,2]
[392564827,1761673832980,-617.40005154,0.000295,2]
[392564828,1761673832990,-5638.80855407,0.00029537,2]
[392564829,1761673832999,-862.40233327,0.00029578,2]
[392564830,1761673833009,-168.0,0.00029596,2]
[392564831,1761673833019,-1425.0,0.00029617,2]
[392564832,1761673833028,-1425.0,0.00029626,2]
[392564833,1761673833037,-1425.0,0.00029629,2]
[392564834,1761673833050,-1425.0,0.00029637,2]
[392564835,1761673833061,-1425.0,0.00029659,2]
[392564836,1761673833070,-1425.0,0.00029659,2]
[392564837,1761673833079,-1000.0,0.00029664,120]
[392564838,1761673833088,-1425.0,0.00029674,2]
[392564839,1761673833097,-1425.0,0.00029675,2]
[392564840,1761673833107,-150.0,0.00029679,2]
[392564841,1761673833116,-1425.0,0.00029687,2]
[392564842,1761673833125,-1764.6185,0.0002969,2]
[392564843,1761673833134,-168.0,0.00029697,2]
[392564844,1761673833143,-168.0,0.00029701,2]
[392564845,1761673833152,-150.0,0.00029702,2]
[392564846,1761673833161,-1425.0,0.00029705,2]
[392564847,1761673833170,-800.0,0.00029708,2]
[392564848,1761673833178,-200.0,0.00029709,2]
[392564849,1761673833188,-33.47507303,0.00029715,2]
[392564858,1761673837587,-5042.6132849,0.00029715,2]
[392564859,1761673837597,-1425.0,0.00029725,2]
[392564860,1761673837606,-1425.0,0.00029725,2]
[392564861,1761673837616,-1425.0,0.00029739,2]
[392564862,1761673837625,-1425.0,0.00029739,2]
[392564863,1761673837634,-1425.0,0.0002974,2]
[392564864,1761673837643,-5638.808554,0.00029745,2]
[392564865,1761673837652,-1000.0,0.00029751,2]
[392564866,1761673837662,-150.0,0.00029764,2]
[392564867,1761673837672,-334.5472959,0.00029773,2]
[392564868,1761673837681,-287.61899177,0.00029773,2]
[392564869,1761673837691,-1425.0,0.00029775,2]
[392564870,1761673837700,-2142.2,0.00029778,24]
[392564871,1761673837709,-1425.0,0.00029787,2]
[392564872,1761673837718,-1425.0,0.00029788,2]
[392564873,1761673837733,-1425.0,0.00029789,2]
[392564874,1761673837742,-342.78294085,0.00029789,2]
[392564876,1761673837752,-159.28820459,0.0002979,15]
[392564878,1761673837761,-1425.0,0.00029796,2]
[392564880,1761673837771,-892.91877552,0.000298,2]
[392564882,1761673837780,-5000.0,0.000298,2]
[392564884,1761673837789,-160.53722172,0.000298,2]
[392564886,1761673837799,-409.31540378,0.000298,2]
[392564888,1761673837809,-425.16816803,0.00029803,2]
[392564890,1761673837819,-41737.0036941,0.00029805,3]
[392564892,1761673837829,-1425.0,0.00029811,2]
[392564894,1761673837838,-2782.46691294,0.00029813,3]
[392564896,1761673837847,-9999.99,0.00029815,2]
[392564898,1761673837856,-9999.99,0.00029815,2]
[392564900,1761673837866,-185.34,0.00029815,2]
[392564902,1761673837875,-499.99,0.00029815,2]
[392564904,1761673837884,-150.99,0.00029815,2]
[392564906,1761673837893,-1582.79,0.00029815,2]
[392564908,1761673837903,-1665.52,0.00029815,90]
[392564910,1761673837912,-9350.62055191,0.00029815,2]
[392564912,1761673837923,-130.38944809,0.00029815,2]
[392564914,1761673837934,-4079.79,0.00029815,2]
[392564916,1761673837943,-150.99,0.00029815,2]
[392564918,1761673837952,-765.72,0.00029815,2]
[392564920,1761673837962,-29151.22314565,0.00029815,2]
[392565063,1761673839899,-67097.84685435,0.00029815,2]
[392565064,1761673839909,-9999.99,0.00029815,2]
[392565065,1761673839918,-999.99,0.00029815,2]
[392565066,1761673839928,-18268.34,0.00029815,10]
[392565067,1761673839937,-3727.34,0.00029815,2]
[392565068,1761673839946,-420.44,0.00029815,2]
[392565069,1761673839955,-1523.92783432,0.00029822,2]
[392565070,1761673839965,-1425.0,0.00029823,2]
[392565071,1761673839975,-1425.0,0.00029831,2]
[392565072,1761673839985,-2782.46691294,0.00029838,3]
[392565073,1761673839995,-206.3,0.0002984,2]
[392565074,1761673840004,-1425.0,0.00029841,2]
[392565075,1761673840014,-606.0,0.00029849,2]
[392565076,1761673840024,-573.0,0.00029849,2]
[392565077,1761673840034,-820.0,0.00029849,2]
[392565078,1761673840043,-1204.947,0.00029849,2]
[392565079,1761673840052,-1591.0,0.00029849,2]
[392565080,1761673840061,-161.012,0.00029849,2]
[392565081,1761673840070,-818.0,0.00029849,2]
[392565082,1761673840080,-2782.46691294,0.0002985,3]
[392565083,1761673840089,-2782.46691294,0.00029859,3]
[392565084,1761673840098,-1425.0,0.0002986,2]
[392565085,1761673840107,-1425.0,0.00029862,2]
[392565086,1761673840116,-16694.8014776,0.00029862,3]
[392565087,1761673840125,-1425.0,0.00029863,2]
[392565088,1761673840134,-1425.0,0.00029869,2]
[392565090,1761673840143,-1425.0,0.00029869,2]
[392565092,1761673840152,-2782.46691294,0.0002987,3]
[392565093,1761673840161,-500.0,0.00029871,3]
[392565094,1761673840170,-500.0,0.00029871,3]
[392565095,1761673840179,-2782.46691294,0.00029872,3]
[392565096,1761673840188,-150.0,0.00029872,2]
[392565097,1761673840198,-26527.67174874,0.00029872,2]
[392565098,1761673840207,-500.0,0.00029873,5]
[392565099,1761673840216,-500.0,0.00029873,2]
[392565100,1761673840225,-1425.0,0.00029874,2]
[392565101,1761673840234,-2782.46691294,0.00029879,3]
[392565102,1761673840244,-500.0,0.0002988,3]
[392565103,1761673840253,-517.06994894,0.0002988,3]
[392565104,1761673840263,-500.0,0.0002988,3]
[392565105,1761673840272,-500.0,0.0002988,3]
[392565106,1761673840281,-500.0,0.0002988,3]
[392565107,1761673840290,-500.0,0.0002988,3]
[392565108,1761673840299,-500.0,0.0002988,3]
[392565109,1761673840308,-633.20679112,0.0002988,3]
[392565110,1761673840317,-500.0,0.0002988,3]
[392565112,1761673840327,-500.0,0.0002988,3]
[392565113,1761673840336,-584.86,0.0002988,3]
[392565114,1761673840346,-500.0,0.0002988,3]
[392565115,1761673840356,-500.0,0.0002988,3]
[392565116,1761673840366,-33389.6029553,0.0002988,3]
[392565117,1761673840375,-4372.6969492,0.0002988,3]
[392565118,1761673840384,-150.0,0.00029882,2]
[392565119,1761673840393,-253.49683933,0.00029882,2]
[392565120,1761673840402,-150.0,0.00029882,2]
[392565121,1761673840412,-150.0,0.00029882,2]
[392565122,1761673840422,-150.0,0.00029882,2]
[392565123,1761673840431,-180.61284602,0.00029882,2]
[392565124,1761673840440,-500.0,0.00029882,2]
[392565125,1761673840449,-150.0,0.00029882,2]
[392565126,1761673840459,-150.0,0.00029882,2]
[392565127,1761673840468,-150.0,0.00029882,2]
[392565128,1761673840478,-150.0,0.00029882,2]
[392565129,1761673840487,-200.0,0.00029882,2]
[392565130,1761673840497,-500.0,0.00029882,2]
[392565131,1761673840506,-1093.1742373,0.00029886,3]
[392565132,1761673840515,-1425.0,0.00029888,2]
[392565133,1761673840524,-1093.1742373,0.00029889,3]
[392565134,1761673840533,-230.45,0.00029889,3]
[392565135,1761673840542,-500.0,0.00029889,3]
[392565136,1761673840552,-16397.6135595,0.0002989,3]
[392565137,1761673840561,-150.0,0.0002989,7]
[392565138,1761673840570,-24230.9363805,0.00029896,2]
[392565139,1761673840579,-1207.67618837,0.00029899,15]
[392565140,1761673840588,-500.0,0.00029899,3]
[392565141,1761673840597,-500.0,0.00029899,3]
[392565142,1761673840607,-500.0,0.00029899,3]
[392565143,1761673840616,-500.0,0.00029899,3]
[392565144,1761673840626,-500.0,0.00029899,3]
[392565145,1761673840635,-500.0,0.00029899,3]
[392565146,1761673840644,-500.0,0.00029899,3]
[392565147,1761673840653,-328.84,0.00029899,3]
[392565148,1761673840663,-500.0,0.00029899,3]
[392565149,1761673840671,-500.0,0.00029899,3]
[392565150,1761673840681,-500.0,0.00029899,3]
[392565151,1761673840690,-500.0,0.00029899,3]
[392565152,1761673840699,-500.0,0.00029899,3]
[392565153,1761673840709,-500.0,0.00029899,3]
[392565154,1761673840718,-571.1,0.00029899,3]
[392565155,1761673840727,-500.0,0.00029899,3]
[392565156,1761673840741,-500.0,0.00029899,3]
[392565157,1761673840750,-151.28579222,0.00029899,3]
[392565158,1761673840759,-1000.0,0.00029899,7]
[392565159,1761673840769,-500.0,0.00029899,3]
[392565160,1761673840779,-500.0,0.00029899,3]
[392565161,1761673840788,-500.0,0.00029899,3]
[392565162,1761673840797,-500.0,0.00029899,3]
[392565163,1761673840807,-500.0,0.00029899,3]
[392565164,1761673840816,-500.0,0.00029899,3]
[392565165,1761673840826,-500.0,0.00029899,3]
[392565166,1761673840835,-500.0,0.00029899,3]
[392565167,1761673840844,-500.0,0.00029899,3]
[392565168,1761673840853,-500.0,0.00029899,3]
[392565169,1761673840863,-500.0,0.00029899,3]
[392565170,1761673840872,-500.0,0.00029899,3]
[392565171,1761673840881,-538.35508747,0.00029899,3]
[392565172,1761673840890,-500.0,0.00029899,3]
[392565173,1761673840900,-500.0,0.00029899,3]
[392565174,1761673840909,-500.0,0.00029899,3]
[392565175,1761673840918,-500.0,0.00029899,3]
[392565176,1761673840928,-500.0,0.00029899,3]
[392565177,1761673840937,-500.0,0.00029899,3]
[392565178,1761673840947,-500.0,0.00029899,3]
[392565179,1761673840957,-500.0,0.00029899,3]
[392565180,1761673840967,-500.0,0.00029899,3]
[392565181,1761673840975,-500.0,0.00029899,3]
[392565182,1761673840985,-500.0,0.00029899,3]
[392565183,1761673840994,-508.68908794,0.00029899,3]
[392565184,1761673841004,-300.0,0.00029899,10]
[392565185,1761673841014,-300.0,0.00029899,10]
[392565186,1761673841023,-666.0,0.00029899,10]
[392565187,1761673841032,-300.0,0.00029899,10]
[392565188,1761673841042,-64477.14270684,0.000299,2]
[392565203,1761673842670,-438038.77624957,0.000299,2]
[392565204,1761673842717,-23.28682795,0.000299,2]
[392565227,1761674950161,-707.0,0.000228,3]
[392565228,1761674950182,-195.0,0.000231,2]
[392565229,1761674950203,-261.40211524,0.000234,2]
[392565230,1761674950222,-5515.0,0.000234,5]